No of Transactions,Dept_Family,Entity_Name,Cert Date,Supplier Name,Reference,Gross Amt,Group/Department,Type of Expenditure - Subjective Codes
1,DCMS,Historic England,29/01/2021,Alex MacArthur Interiors Ltd,0082005745,"50,178.00",Regions Group-London & South East - RD,Grants Historic Buildings
2,DCMS,Historic England,08/01/2021,Alun Griffiths (Contractors) Ltd,0040133489,"176,400.00",Shrewsbury Flax Mill Maltings-Shrewsbury Flax Mill Maltings,Works for Heritage Buildings
3,DCMS,Historic England,08/01/2021,Alun Griffiths (Contractors) Ltd,0040133489,"15,128.32",Shrewsbury Flax Mill Maltings-Shrewsbury Flax Mill Maltings,Works for Heritage Buildings
4,DCMS,Historic England,26/01/2021,Blackpool Council,0082005739,"382,191.00",Regions Group-North West - RD,Grants Historic Buildings
5,DCMS,Historic England,05/01/2021,Cadline Ltd,0040133285,"32,601.60",Corporate Services-IMT,Software Maintenance
6,DCMS,Historic England,25/01/2021,Canal & River Trust,0081005527,"1,319,748.00",Business Improvement-Grants,Grants Historic Buildings
7,DCMS,Historic England,15/01/2021,CDW UK,0040133168,"140,546.90",Corporate Services-IMT,Hosting
8,DCMS,Historic England,15/01/2021,CDW UK,0040133168,"28,894.04",Corporate Services-IMT,Hosting
9,DCMS,Historic England,25/01/2021,CDW UK,0040133734,"73,589.40",Corporate Services-IMT,WIP Software Support
10,DCMS,Historic England,25/01/2021,CDW UK,0040133770,"32,749.92",Corporate Services-IMT,WIP Software Support
11,DCMS,Historic England,25/01/2021,CDW UK,0040133771,"32,010.38",Corporate Services-IMT,WIP Software Support
12,DCMS,Historic England,25/01/2021,COPTRZ,0040133445,"37,194.00",Policy & Evidence-National Specialist Services,Plant & Equipment > 10k
13,DCMS,Historic England,06/01/2021,Croft Building and Conservation Ltd,0040133389,"113,317.63",Shrewsbury Flax Mill Maltings-Shrewsbury Flax Mill Maltings,Works for Heritage Buildings
14,DCMS,Historic England,06/01/2021,Croft Building and Conservation Ltd,0040133392,"597,811.20",Shrewsbury Flax Mill Maltings-Shrewsbury Flax Mill Maltings,Works for Heritage Buildings
15,DCMS,Historic England,06/01/2021,Croft Building and Conservation Ltd,0040133393,"31,339.20",Shrewsbury Flax Mill Maltings-Shrewsbury Flax Mill Maltings,Works for Heritage Buildings
16,DCMS,Historic England,06/01/2021,Croft Building and Conservation Ltd,0040133394,"114,609.60",Shrewsbury Flax Mill Maltings-Shrewsbury Flax Mill Maltings,Works for Heritage Buildings
17,DCMS,Historic England,05/01/2021,EDF  ,0020074195,"32,712.45",Corporate Services-Corporate,Electricity
18,DCMS,Historic England,27/01/2021,EDF  ,0020074233,"30,829.37",Corporate Services-Corporate,Electricity
19,DCMS,Historic England,07/01/2021,Falmouth Town Council,0082005731,"33,750.00",Regions Group-South West - RD,Grants Historic Buildings
20,DCMS,Historic England,05/01/2021,Feilden Clegg Bradley Studios LLP,0040133302,"30,974.30",Shrewsbury Flax Mill Maltings-Shrewsbury Flax Mill Maltings,Fees for Professional Advice
21,DCMS,Historic England,19/01/2021,GTT-EMA Ltd,0040133386,"55,594.45",Corporate Services-IMT,Network Contracts
22,DCMS,Historic England,25/01/2021,ICCROM,0020074224,"76,651.73",Policy & Evidence-Policy & Evidence Centre,Corporate Subscriptions
23,DCMS,Historic England,07/01/2021,Keyence (UK) Ltd,0040133276,"92,887.20",Policy & Evidence-National Specialist Services,Plant & Equipment > 10k
24,DCMS,Historic England,19/01/2021,Landmark Chambers,0040133670,"79,200.00",Governance & Legal-Governance & Legal Department,Legal Fees
25,DCMS,Historic England,12/01/2021,Little Fish (UK) Ltd,0040133398,"42,859.20",Corporate Services-IMT,Service Management Contracts
26,DCMS,Historic England,12/01/2021,Little Fish (UK) Ltd,0040133399,"69,471.60",Corporate Services-IMT,End User Contracts
27,DCMS,Historic England,26/01/2021,London Borough of Bromley,0082005737,"93,750.00",Regions Group-London & South East - RD,Grants Historic Buildings
28,DCMS,Historic England,19/01/2021,Morecambe Winter Gardens Preservation,0082005735,"167,457.00",Regions Group-North West - RD,Grants Historic Buildings
29,DCMS,Historic England,12/01/2021,Plumpton Rocks Harrogate,0082005733,"71,809.00",Regions Group-North East & Yorkshire - RD,Grants Historic Buildings
30,DCMS,Historic England,06/01/2021,National Audit Office,0040133349,"43,000.00",Corporate Services-Finance & Procurement Dept,Audit Fee
31,DCMS,Historic England,26/01/2021,North East Lincolnshire,0082005740,"30,000.00",Regions Group-Midlands - RD,Grants Historic Buildings
32,DCMS,Historic England,15/01/2021,Sonatest Ltd,0040133545,"58,503.59",Policy & Evidence-National Specialist Services,Plant & Equipment > 10k
33,DCMS,Historic England,15/01/2021,Sonatest Ltd,0040133545,"4,894.20",Policy & Evidence-National Specialist Services,Plant & Equipment > 10k
34,DCMS,Historic England,15/01/2021,Sonatest Ltd,0040133545,"17,622.00",Policy & Evidence-National Specialist Services,Plant & Equipment > 10k
35,DCMS,Historic England,15/01/2021,Sonatest Ltd,0040133545,"7,671.06",Policy & Evidence-National Specialist Services,Plant & Equipment > 10k
36,DCMS,Historic England,15/01/2021,Sonatest Ltd,0040133545,"9,588.11",Policy & Evidence-National Specialist Services,Plant & Equipment > 10k
37,DCMS,Historic England,15/01/2021,Sonatest Ltd,0040133545,203.70,Policy & Evidence-National Specialist Services,Plant & Vehicles <10k
38,DCMS,Historic England,15/01/2021,Sonatest Ltd,0040133545,"6,750.00",Policy & Evidence-National Specialist Services,Plant & Vehicles <10k
39,DCMS,Historic England,20/01/2021,The Heritage Alliance,0081005523,"42,708.00",Business Improvement-Grants,Grants Capacity Building Grants
40,DCMS,Historic England,11/01/2021,Vodafone Corporate Ltd,0040133367,30.15,Corporate Services-IMT,Telephone and Communications
41,DCMS,Historic England,11/01/2021,Vodafone Corporate Ltd,0040133367,"33,055.68",Corporate Services-IMT,Telephone and Communications
42,DCMS,Historic England,12/01/2021,Vodafone Corporate Ltd,0040133452,"37,143.30",Corporate Services-IMT,Telephone and Communications
43,DCMS,Historic England,27/01/2021,Wakefield Council,0083000450,"93,944.00",Regions Group-High Str (HAZ) - Regions,Grants Area
44,DCMS,Historic England,12/01/2021,Wessex Archaeology Ltd,0040133218,"50,000.00",Business Improvement-Grants,Maritime Commissions
